bitfinex/quotes_SOLUSD_20241118
["timestamp","ask_amount","ask_price","bid_price","bid_amount"]
[1731935495405,70.0,240.08,239.94,23.4793]
[1731935495406,20.02768459,240.03,239.94,23.4793]
[1731935495582,20.02768459,239.96,239.88,31.41910828]
[1731935495996,20.02768459,239.94,239.88,31.41910828]
[1731935496676,70.0,239.95,239.88,31.41910828]
[1731935496877,24.19518459,239.96,239.88,51.44679287]
[1731935497191,24.19518459,239.96,239.88,55.61539287]
[1731935497374,24.19438459,240.0,239.9,20.02768459]
[1731935497702,20.02768459,239.98,239.9,20.02768459]
[1731935497899,20.02768459,240.0,239.92,20.02768459]
[1731935498081,20.02768459,240.04,239.94,20.02768459]
[1731935498398,20.02768459,240.04,239.96,20.02768459]
[1731935498604,20.02768459,240.04,239.91,8.8352]
[1731935498605,20.02768459,240.08,239.99,0.12549]
[1731935499102,20.02768459,240.1,240.02,20.02768459]
[1731935499485,20.02768459,240.1,240.03,0.12549]
[1731935499688,20.02768459,240.1,240.03,0.25098]
[1731935499903,8.2869,240.14,240.05,0.25098]
[1731935499904,20.02768459,240.14,240.05,0.25098]
[1731935500202,20.02768459,240.14,240.07,0.12549]
[1731935500897,20.02768459,240.14,240.07,4.29079]
[1731935501204,90.02768459,240.18,240.1,20.02768459]
[1731935501504,20.02768459,240.14,240.07,10.53909]
[1731935501800,20.02768459,240.14,240.07,14.70449]
[1731935502494,20.02768459,240.19,240.11,20.02768459]
[1731935502701,4.1629,240.22,240.11,20.02768459]
[1731935502875,20.02768459,240.2,240.12,14.5759]
[1731935503070,20.02768459,240.22,240.13,20.27866459]
[1731935503477,20.02768459,240.26,240.19,20.02768459]
[1731935503679,20.02768459,240.28,240.19,20.02768459]
[1731935504177,20.02768459,240.26,240.19,20.02768459]
[1731935504379,20.02768459,240.21,240.13,40.27866459]
[1731935504680,20.02768459,240.25,240.17,20.02768459]
[1731935504881,20.02768459,240.27,240.19,20.02768459]
[1731935505086,20.02768459,240.27,240.2,0.12549]
[1731935505292,20.02768459,240.27,240.19,20.02768459]
[1731935505608,20.02768459,240.2,240.13,24.19198459]
[1731935505786,20.02768459,240.22,240.13,24.19198459]
[1731935506098,20.02768459,240.24,240.17,20.02768459]
[1731935506299,70.0,240.26,240.13,34.60298459]
[1731935506300,20.02768459,240.22,240.13,34.60298459]
[1731935507108,20.02768459,240.26,240.18,0.12549]
[1731935507314,20.02768459,240.28,240.19,20.02768459]
[1731935507605,20.02768459,240.3,240.23,20.9896]
[1731935507811,20.02768459,240.3,240.23,41.01728459]
[1731935508604,20.02768459,240.31,240.24,4.1625]
[1731935509211,20.02768459,240.25,240.17,10.4091]
[1731935509378,70.0,240.28,240.17,4.1637]
[1731935509582,20.02768459,240.25,240.17,24.19138459]
[1731935509784,20.02768459,240.23,240.17,10.4092]
[1731935510303,20.02768459,240.25,240.17,14.5729]
[1731935510599,20.02768459,240.31,240.23,20.02768459]
[1731935510974,20.02768459,240.33,240.23,20.02768459]
[1731935511175,20.02768459,240.33,240.22,0.25098]
[1731935511401,20.02768459,240.33,240.25,20.02768459]
[1731935511582,20.02768459,240.37,240.28,20.02768459]
[1731935511791,20.02768459,240.37,240.29,20.02768459]
[1731935512105,4.42890039,240.44,240.31,20.02768459]
[1731935512106,20.02768459,240.39,240.31,20.02768459]
[1731935512275,20.02768459,240.41,240.33,20.02768459]
[1731935512683,20.02768459,240.45,240.37,20.02768459]
[1731935512904,20.02768459,240.45,240.38,0.12549]
[1731935513111,20.02768459,240.45,240.37,20.02768459]
[1731935513405,20.02768459,240.43,240.35,0.12549]
[1731935513705,20.02768459,240.45,240.36,20.02768459]
[1731935514112,20.02768459,240.47,240.39,0.12549]
[1731935514619,20.02768459,240.51,240.43,20.02768459]
[1731935514822,4.1577,240.52,240.45,20.02768459]
[1731935515129,20.02768459,240.55,240.47,20.02768459]
[1731935515306,4.1567,240.58,240.49,20.02768459]
[1731935515504,24.18438459,240.58,240.49,20.02768459]
[1731935515702,24.18438459,240.58,240.46,0.12549]
[1731935515703,20.02768459,240.56,240.47,20.02768459]
[1731935516421,20.02768459,240.56,240.48,4.1583]
[1731935516719,20.02768459,240.5,240.44,22.5885]
[1731935516895,20.02768459,240.45,240.38,20.882]
[1731935517509,20.02768459,240.41,240.38,20.882]
[1731935517818,20.02768459,240.39,240.38,20.882]
[1731935518033,20.02768459,240.39,240.35,9.1474]
[1731935518349,20.02768459,240.37,240.32,21.9266]
[1731935518514,20.02768459,240.35,240.32,21.9266]
[1731935518908,20.02768459,240.35,240.29,8.8732]
[1731935519106,20.02768459,240.3,240.26,22.4499]
[1731935519611,20.02768459,240.32,240.26,22.4499]
[1731935519797,74.1603,240.37,240.26,26.612]
[1731935519798,20.02768459,240.34,240.26,26.612]
[1731935519998,20.02768459,240.32,240.26,22.4499]
[1731935520214,20.02768459,240.34,240.26,46.63958459]
[1731935521105,20.02768459,240.36,240.28,20.02768459]
[1731935521294,20.02768459,240.4,240.32,20.02768459]
[1731935521625,20.02768459,240.4,240.33,0.12549]
[1731935522032,20.02768459,240.4,240.33,0.25098]
[1731935522236,20.02768459,240.36,240.29,0.12549]
[1731935522539,20.02768459,240.3,240.26,22.4499]
[1731935522823,20.02768459,240.28,240.26,22.4499]
[1731935523026,20.02768459,240.28,240.2,29.885]
[1731935523240,20.02768459,240.23,240.2,29.885]
[1731935523409,14.5619,240.35,240.2,20.9517]
[1731935523410,20.02768459,240.21,240.2,20.9517]
[1731935523728,20.02768459,240.25,240.15,20.02768459]
[1731935523939,20.02768459,240.27,240.17,20.02768459]
[1731935524232,20.02768459,240.29,240.2,0.09367462]
[1731935524519,20.02768459,240.31,240.24,0.09367462]
[1731935525123,20.02768459,240.31,240.24,0.25098]
[1731935525334,20.02768459,240.29,240.23,10.4066]
[1731935525504,4.1612,240.31,240.24,24.027864]
[1731935525505,20.02768459,240.31,240.24,24.027864]
[1731935526031,20.02768459,240.26,240.18,10.4087]
[1731935526241,14.5621,240.35,240.18,10.4087]
[1731935526242,20.02768459,240.24,240.18,10.159129]
[1731935526405,20.02768459,240.26,240.18,10.159129]
[1731935526718,20.02768459,240.26,240.18,14.322629]
[1731935526924,20.02768459,240.28,240.2,0.09367462]
[1731935527436,20.02768459,240.3,240.22,0.09367462]
[1731935528026,20.02768459,240.3,240.22,24.12153862]
[1731935528432,20.02768459,240.26,240.19,23.902374]
[1731935528630,30.42908459,240.36,240.19,23.902374]
[1731935528631,20.02768459,240.28,240.19,20.02768459]
[1731935529415,20.02768459,240.28,240.2,0.09367462]
[1731935529727,20.02768459,240.3,240.22,23.99604862]
[1731935530032,20.02768459,240.3,240.23,0.12549]
[1731935530205,20.02768459,240.28,240.23,0.25098]
[1731935530605,20.02768459,240.3,240.23,0.25098]
[1731935530807,20.02768459,240.3,240.23,4.41358]
[1731935531236,20.02768459,240.32,240.26,0.09367462]
[1731935531532,20.02768459,240.34,240.28,0.12549]
[1731935531700,20.02768459,240.34,240.28,0.25098]
[1731935532098,20.02768459,240.34,240.28,0.12549]
[1731935532398,10.399,240.41,240.28,0.12549]
[1731935532399,20.02768459,240.32,240.28,0.12549]
[1731935532621,20.02768459,240.34,240.28,0.25098]
[1731935532923,20.02768459,240.38,240.3,32.869364]
[1731935533126,20.02768459,240.38,240.32,0.12549]
[1731935533733,20.02768459,240.33,240.27,21.2795]
[1731935533917,20.02768459,240.33,240.28,0.12549]
[1731935534524,24.18868459,240.33,240.28,0.12549]
[1731935534712,24.18868459,240.33,240.27,21.2795]
[1731935536931,20.02768459,240.33,240.28,0.12549]
[1731935537101,24.18868459,240.33,240.27,21.2795]
[1731935537926,24.18868459,240.33,240.16,0.1]
[1731935537927,8.7774,240.32,239.91,0.1]
[1731935538129,70.0,240.02,239.92,4.39770452]
[1731935538304,20.02768459,239.95,239.94,30.0]
[1731935538507,20.02768459,239.95,239.88,31.41910828]
[1731935538508,24.19518459,239.95,239.88,31.41910828]
[1731935538700,20.02768459,239.9,239.88,31.41910828]
[1731935538928,20.02768459,239.9,239.88,16.9362064]
[1731935539308,30.0,239.89,239.88,5.56696924]
[1731935539826,30.0,239.89,239.88,5.54696924]
[1731935540031,30.0,239.89,239.8,10.4249]
[1731935540032,49.37600365,239.89,239.8,20.02768459]
[1731935540209,49.37600365,239.89,239.8,32.55644777]
[1731935540210,37.6139377,239.87,239.8,32.55644777]
[1731935540530,67.6139377,239.85,239.76,32.55644777]
[1731935540736,37.6139377,239.82,239.74,32.55644777]
[1731935540916,37.6139377,239.81,239.76,32.55644777]
[1731935541228,30.0,239.85,239.76,32.55644777]
[1731935541435,62.55644777,239.8,239.71,32.55644777]
[1731935541637,30.0,239.8,239.73,32.55644777]
[1731935542345,62.55644777,239.8,239.71,32.55644777]
[1731935542639,102.55644777,239.78,239.64,10.4318]
[1731935542929,102.55644777,239.78,239.7,32.55644777]
[1731935542930,30.0,239.77,239.7,32.55644777]
[1731935543132,30.0,239.77,239.72,32.55644777]
[1731935543313,30.0,239.77,239.74,32.55644777]
[1731935543508,30.0,239.77,239.76,32.55644777]
[1731935543931,30.0,239.77,239.76,32.65012239]
[1731935544141,30.0,239.77,239.76,56.67798639]
[1731935544438,29.0,239.77,239.76,76.67798639]
[1731935544614,32.55644777,239.85,239.77,0.09367462]
[1731935544820,32.55644777,239.87,239.81,0.25098]
[1731935545015,30.0,239.82,239.81,0.25098]
[1731935545726,30.0,239.82,239.81,0.34465462]
[1731935546030,30.0,239.82,239.81,44.12153862]
[1731935546208,32.55644777,239.89,239.84,0.09367462]
[1731935546546,32.55644777,239.89,239.85,0.25098]
[1731935547410,32.55644777,239.89,239.87,0.25098]
[1731935547920,32.55644777,239.91,239.89,0.25098]
[1731935548537,32.55644777,239.91,239.8,8.4071]
[1731935548538,4.1685,239.89,239.73,32.55644777]
[1731935548708,32.55644777,239.81,239.73,32.55644777]
[1731935549335,36.72494777,239.89,239.72,0.1]
[1731935549336,32.55644777,239.83,239.75,32.55644777]
[1731935549721,32.55644777,239.83,239.76,0.25098]
[1731935549924,32.55644777,239.83,239.76,24.027864]
[1731935550442,32.55644777,239.83,239.77,4.1705]
[1731935551215,32.55644777,239.83,239.73,0.1]
[1731935551216,32.55644777,239.81,239.69,0.1]
[1731935551431,32.55644777,239.81,239.73,32.55644777]
[1731935551733,32.55644777,239.83,239.76,0.09367462]
[1731935552115,32.55644777,239.81,239.74,20.0]
[1731935552423,100.0,239.9,239.76,24.1708]
[1731935552424,32.55644777,239.83,239.76,24.1708]
[1731935552634,32.55644777,239.83,239.77,0.09367462]
[1731935552827,32.55644777,239.81,239.77,0.09367462]
[1731935553507,32.55644777,239.81,239.78,0.12549]
[1731935553935,32.55644777,239.81,239.78,0.25098]
[1731935554237,32.55644777,239.81,239.78,4.42128]
[1731935554443,32.55644777,239.79,239.6,0.1]
[1731935554642,32.55644777,239.75,239.65,32.55644777]
[1731935554949,14.5912,239.87,239.68,32.65644777]
[1731935554950,32.55644777,239.77,239.68,32.65644777]
[1731935555116,32.55644777,239.79,239.71,0.09367462]
[1731935555929,32.55644777,239.83,239.79,0.09367462]
[1731935556232,30.0,239.8,239.78,23.902374]
[1731935556422,30.0,239.8,239.79,0.12549]
[1731935556628,32.55644777,239.83,239.8,0.09367462]
[1731935556852,32.55644777,239.86,239.82,0.21916462]
[1731935557134,32.55644777,239.86,239.83,0.25098]
[1731935557627,32.55644777,239.88,239.86,0.09367462]
[1731935557942,32.55644777,240.0,239.88,0.12549]
[1731935557943,32.55644777,239.93,239.88,0.12549]
[1731935558108,32.55644777,239.95,239.88,0.12549]
[1731935558314,70.0,240.05,239.9,0.12549]
[1731935558530,0.1,240.08,239.9,0.12549]
[1731935558531,32.55644777,239.99,239.92,32.68193777]
[1731935558735,32.55644777,239.99,239.93,0.12549]
[1731935559040,32.55644777,240.01,239.95,0.12549]
[1731935559338,32.55644777,240.05,239.97,0.12549]
[1731935559517,32.55644777,240.05,239.97,24.027864]
[1731935559928,32.55644777,240.05,239.99,0.12549]
[1731935560115,32.55644777,240.07,240.01,24.027864]
[1731935560330,32.55644777,240.09,240.02,0.09367462]
[1731935560529,32.55644777,240.11,240.05,0.25098]
[1731935560715,32.55644777,240.11,240.05,24.027864]
[1731935561137,32.55644777,240.11,240.04,20.0]
[1731935561322,32.55644777,240.05,239.93,20.0]
[1731935561527,32.55644777,239.99,239.92,10.4198]
[1731935562053,32.55644777,239.97,239.89,32.55644777]
[1731935562212,32.55644777,239.97,239.89,36.72484777]
[1731935562416,0.1,240.1,239.89,36.72484777]
[1731935562417,32.55644777,240.03,239.95,32.55644777]
[1731935563214,32.55644777,240.01,239.91,32.55644777]
[1731935563417,32.55644777,240.03,239.95,32.55644777]
[1731935563722,32.55644777,240.03,239.96,20.25098]
[1731935564224,32.55644777,240.03,239.96,0.25098]
[1731935564428,102.55644777,240.12,239.96,0.25098]
[1731935564429,32.55644777,240.05,239.96,4.41818]
[1731935564828,32.55644777,240.05,239.97,32.55644777]
[1731935565237,32.55644777,240.05,239.96,4.41818]
[1731935565542,4.1633,240.19,240.04,32.55644777]
[1731935565742,32.55644777,240.13,240.04,32.55644777]
[1731935566131,32.55644777,240.11,240.04,32.55644777]
[1731935566726,32.55644777,240.13,240.04,32.55644777]
[1731935566932,32.55644777,240.13,239.77,2.15214934]
[1731935566933,31.0451,240.11,239.77,2.15214934]
[1731935567146,32.55644777,239.84,239.77,2.15214934]
[1731935567318,32.55644777,239.84,239.75,10.4274]
[1731935567517,32.55644777,239.84,239.75,42.98384777]
[1731935567723,32.55644777,239.84,239.75,10.4274]
[1731935568030,32.55644777,239.82,239.73,32.55644777]
[1731935568226,32.55644777,239.86,239.75,32.55644777]
[1731935568545,32.55644777,239.84,239.73,47.15584777]
[1731935568740,32.55644777,239.86,239.76,32.55644777]
[1731935568951,32.55644777,239.84,239.75,0.09367462]
[1731935569149,32.55644777,239.86,239.76,32.55644777]
[1731935570245,32.55644777,239.86,239.76,36.72714777]
[1731935570457,32.55644777,239.86,239.76,32.55644777]
[1731935570947,32.55644777,239.86,239.77,4.1706]
[1731935571138,0.1,239.94,239.8,32.55644777]
[1731935571139,32.55644777,239.91,239.8,32.55644777]
[1731935571325,32.55644777,239.89,239.78,32.55644777]
[1731935571527,32.55644777,239.87,239.78,32.55644777]
[1731935571927,32.55644777,239.85,239.77,10.4266]
[1731935572230,32.55644777,239.83,239.77,10.4266]
[1731935572741,32.55644777,239.85,239.77,14.5972]
[1731935573146,32.55644777,239.88,239.78,32.55644777]
[1731935574336,32.55644777,239.86,239.77,10.4266]
[1731935575640,32.55644777,239.84,239.77,14.5972]
[1731935575844,32.55644777,239.82,239.77,14.5972]
[1731935576552,32.55644777,239.86,239.77,14.5972]
[1731935576729,32.55644777,239.84,239.77,14.5972]
[1731935577038,32.55644777,239.82,239.77,10.4266]
[1731935577740,32.55644777,239.86,239.78,32.55644777]
[1731935577938,32.55644777,239.86,239.77,10.4266]
[1731935578131,32.55644777,239.84,239.77,10.4266]
[1731935578380,20.04492611,239.83,239.77,10.4266]
[1731935578530,20.04492611,239.85,239.77,30.47152611]
[1731935578856,20.04492611,239.85,239.79,4.1703]
[1731935579357,20.04492611,239.85,239.79,14.596]
[1731935580926,20.04492611,239.85,239.76,4.1707]
[1731935581456,20.04492611,239.83,239.76,14.5977]
[1731935581950,20.04492611,239.85,239.76,14.5977]
[1731935582953,20.04492611,239.85,239.77,20.04492611]
[1731935584447,20.04492611,239.87,239.79,20.04492611]
[1731935585238,20.04492611,239.85,239.78,10.4262]
[1731935586357,20.04492611,239.85,239.77,20.04492611]
[1731935586558,90.04492611,239.78,239.62,5.72582624]
[1731935586744,20.04492611,239.75,239.68,20.04492611]
[1731935586934,20.04492611,239.76,239.68,20.04492611]
[1731935587134,90.04492611,239.75,239.68,10.4305]
[1731935587338,20.04492611,239.73,239.66,20.04492611]
[1731935587538,20.04492611,239.72,239.65,20.04492611]
[1731935587749,20.04492611,239.68,239.62,5.72582624]
[1731935587951,20.04492611,239.67,239.62,5.72582624]
[1731935588144,20.04492611,239.69,239.62,25.77075235]
[1731935588346,4.1722,239.68,239.62,25.77075235]
[1731935588933,70.0,239.7,239.64,20.04492611]
[1731935589145,70.0,239.69,239.64,20.04492611]
[1731935589348,20.04492611,239.68,239.62,5.72582624]
[1731935589545,20.04492611,239.67,239.62,5.72582624]
[1731935589750,20.04492611,239.68,239.62,5.72582624]
[1731935590062,20.04492611,239.68,239.62,25.77075235]
[1731935590263,90.04492611,239.69,239.62,25.77075235]
[1731935590561,90.04492611,239.7,239.64,20.04492611]
[1731935590737,20.04492611,239.69,239.63,20.04492611]
[1731935591248,20.04492611,239.68,239.62,40.37705235]
[1731935591641,20.04492611,239.69,239.62,36.20385235]
[1731935591841,20.04492611,239.67,239.62,16.15892624]
[1731935592249,20.04492611,239.66,239.62,5.72582624]
[1731935592447,20.04492611,239.67,239.62,5.72582624]
[1731935593065,20.04492611,239.66,239.62,5.72582624]
[1731935594061,90.04492611,239.69,239.63,20.04492611]
[1731935594356,20.04492611,239.67,239.62,5.72582624]
[1731935594847,20.04492611,239.67,239.62,9.89902624]
[1731935595449,20.04492611,239.66,239.62,20.33212624]
[1731935595849,20.04492611,239.68,239.62,40.37705235]
[1731935596054,90.04492611,239.69,239.62,40.37705235]
[1731935596358,20.04492611,239.68,239.62,40.37705235]
[1731935596545,20.04492611,239.68,239.62,20.33212624]
[1731935597238,20.04492611,239.69,239.62,40.37705235]
[1731935597448,20.04492611,239.67,239.62,20.33212624]
[1731935597664,20.04492611,239.66,239.62,20.33212624]
[1731935597961,20.04492611,239.67,239.62,20.33212624]
[1731935599065,70.0,239.7,239.62,20.33212624]
[1731935599066,20.04492611,239.65,239.62,20.33212624]
[1731935600074,20.04492611,239.64,239.62,20.33212624]
[1731935600901,70.1,239.4,239.33,2.15708477]
[1731935601173,70.1,239.4,239.17,10.4528]
[1731935601174,70.0,239.33,239.17,10.4528]
[1731935601345,20.04492611,239.24,239.17,14.6337]
[1731935601544,20.04492611,239.24,239.17,10.4528]
[1731935601868,20.04492611,239.24,239.15,0.4773691]
[1731935602042,20.04492611,239.28,239.15,0.4773691]
[1731935602043,20.04492611,239.22,239.16,4.1813]
[1731935602246,20.04492611,239.18,239.15,0.4773691]
[1731935602444,20.04492611,239.16,239.15,0.4773691]
[1731935602864,90.04492611,239.16,239.15,0.4773691]
[1731935603039,70.0,239.16,239.15,0.4773691]
[1731935603244,110.18985222,239.16,239.15,0.4773691]
[1731935603472,5.02566869,239.26,239.08,15.0]
[1731935603473,70.0,239.2,239.08,13.35589791]
[1731935603668,90.04492611,239.21,239.12,20.04492611]
[1731935603875,90.04492611,239.17,239.09,10.4563]
[1731935604181,20.04492611,239.17,239.09,10.4563]
[1731935604350,70.0,239.15,239.08,13.35589791]
[1731935604552,70.0,239.11,239.08,13.35589791]
[1731935604851,32.7596845,239.1,239.08,13.35589791]
[1731935605369,70.0,239.09,239.08,13.35589791]
[1731935605568,32.7596845,239.12,239.08,13.35589791]
[1731935605746,70.0,239.1,239.08,13.35589791]
[1731935605951,102.7596845,239.1,239.08,13.35589791]
[1731935606249,70.0,239.11,239.08,13.35589791]
[1731935606444,102.7596845,239.11,239.08,13.35589791]
[1731935606668,32.7596845,239.09,239.08,13.35589791]
[1731935606861,70.0,239.09,239.08,13.35589791]
[1731935607051,102.8596845,239.09,239.08,13.35589791]
[1731935607253,102.7596845,239.09,239.08,13.35589791]
[1731935607771,107.00585927,239.09,239.08,13.35589791]
[1731935607942,111.18835927,239.09,239.08,13.35589791]
[1731935608278,111.18835927,239.09,239.0,6.0]
[1731935608279,70.0,239.04,239.0,6.0]
[1731935608450,32.7596845,239.01,239.0,6.0]
[1731935608649,32.7596845,239.03,239.0,6.0]
[1731935608854,70.0,239.04,239.0,6.0]
[1731935609254,70.0,239.01,239.0,6.0]
[1731935609761,32.7596845,239.03,239.0,6.0]
[1731935609957,70.0,239.04,239.0,6.0]
[1731935610157,32.7596845,239.11,239.01,4.1839]
[1731935610478,70.0,239.09,239.02,32.7596845]
[1731935610667,70.0,239.09,239.01,4.1839]
[1731935610970,70.0,239.09,239.02,32.7596845]
[1731935611176,32.7596845,239.15,239.05,23.776884]
[1731935611349,32.7596845,239.15,239.04,32.7596845]
[1731935611350,70.0,239.11,239.0,6.0]
[1731935611549,32.7596845,239.07,239.0,6.0]
[1731935611775,102.7596845,239.11,239.01,32.7596845]
[1731935611965,70.0,239.14,239.05,32.7596845]
[1731935612199,32.7596845,239.13,239.04,14.6419]
[1731935612476,102.7596845,239.09,239.01,4.1837]
[1731935612789,32.7596845,239.09,239.02,23.776884]
[1731935612975,32.7596845,239.13,239.04,23.776884]
[1731935613390,32.7596845,239.13,239.05,32.7596845]
[1731935613573,102.7596845,239.15,239.06,23.776884]
[1731935613766,32.7596845,239.15,239.06,56.5365685]
[1731935614081,70.0,239.11,239.04,32.7596845]
[1731935614288,70.0,239.1,239.02,32.7596845]
[1731935614487,32.7596845,239.11,239.02,32.7596845]
[1731935614788,32.7596845,239.11,239.0,6.0]
[1731935614789,32.7596845,239.03,239.0,6.0]
[1731935615092,102.7596845,239.03,239.0,6.0]
[1731935615463,32.7596845,239.01,239.0,6.0]
[1731935615675,32.7596845,239.05,239.0,6.0]
[1731935615872,70.0,239.06,239.0,6.0]
[1731935616073,70.0,239.03,239.0,6.0]
[1731935616273,32.7596845,239.03,239.0,6.0]
[1731935616479,70.0,239.01,239.0,6.0]
[1731935617068,132.8596845,239.01,239.0,6.0]
[1731935617262,132.7596845,239.01,239.0,6.0]
[1731935617674,30.0,239.01,239.0,6.0]
[1731935619367,102.7596845,239.07,239.0,6.0]
[1731935619562,32.7596845,239.09,239.01,56.5365685]
[1731935619764,102.7596845,239.11,239.01,56.5365685]
[1731935619985,32.7596845,239.09,239.01,32.7596845]
[1731935620169,32.7596845,239.07,239.0,6.0]
[1731935620371,32.7596845,239.01,239.0,29.776884]
[1731935620583,32.7596845,239.01,239.0,6.0]
[1731935620791,102.7596845,239.01,239.0,6.0]
[1731935621086,152.7596845,239.01,239.0,6.0]
[1731935621288,70.0,238.95,238.83,32.7596845]
[1731935621508,32.7596845,238.92,238.83,32.7596845]
[1731935621786,32.7596845,238.92,238.85,32.7596845]
[1731935621995,32.7596845,238.92,238.83,10.4675]
[1731935621996,62.7596845,238.92,238.84,4.1868]
[1731935622583,95.519369,238.92,238.83,10.4675]
[1731935623111,70.0,238.81,238.8,1.0]
[1731935623438,102.7596845,238.81,238.8,1.0]
[1731935624283,136.9470845,238.81,238.8,1.0]
[1731935624482,30.0,238.81,238.8,1.0]
[1731935626572,34.1874,238.81,238.8,1.0]
[1731935626783,66.9470845,238.81,238.8,1.0]
[1731935627302,30.0,238.81,238.8,1.0]
[1731935627682,30.0,238.81,238.8,33.7596845]
[1731935628195,74.186,238.89,238.8,33.7596845]
[1731935628396,106.9456845,238.89,238.82,32.7596845]
[1731935628698,70.0,238.89,238.85,32.7596845]
[1731935628900,4.1841,239.0,238.85,23.776884]
[1731935629211,4.1841,239.0,238.86,0.34465462]
[1731935629406,4.1834,239.04,238.88,44.22153862]
[1731935629602,70.0,239.08,238.92,0.34465462]
[1731935629795,70.0,239.03,238.88,43.776884]
[1731935629990,32.7596845,239.05,238.98,32.7596845]
[1731935630292,32.7596845,239.08,239.01,32.7596845]
[1731935630484,32.7596845,239.1,239.03,32.7596845]
[1731935630697,32.7596845,239.1,239.02,56.5365685]
[1731935630923,32.7596845,239.09,239.02,60.7202685]
[1731935631516,32.7596845,239.1,239.02,60.7202685]
[1731935631829,32.7596845,239.11,239.04,23.776884]
[1731935632114,32.7596845,239.1,239.02,71.1795685]
[1731935632603,32.7596845,239.03,238.94,10.4624]
[1731935632810,32.7596845,239.02,238.94,10.4624]
[1731935633109,31.2596845,239.02,238.96,32.7596845]
[1731935633289,31.2596845,239.02,238.94,43.2220845]
[1731935633489,32.7596845,239.04,238.96,32.7596845]
[1731935633703,32.7596845,239.1,239.02,32.7596845]
[1731935634010,32.7596845,239.08,239.0,32.7596845]
[1731935634220,32.7596845,239.08,239.01,23.776884]
[1731935634400,32.7596845,239.06,239.0,32.7596845]
[1731935634710,32.7596845,239.06,238.99,56.5365685]
[1731935635020,32.7596845,239.06,238.97,4.1844]
[1731935635021,102.7596845,239.1,239.02,56.5365685]
[1731935635186,106.9419845,239.1,239.02,32.7596845]
[1731935635504,4.1823,239.1,239.04,32.7596845]
[1731935635910,4.1823,239.1,239.03,32.7596845]
[1731935636106,36.9419845,239.1,239.02,56.5365685]
[1731935636490,70.0,239.02,238.9,10.4642]
[1731935636696,32.7596845,239.0,238.91,32.7596845]
[1731935636915,32.7596845,239.0,238.84,10.1935]
[1731935636916,102.7596845,238.96,238.89,32.7596845]
[1731935637215,32.7596845,238.9,238.84,10.0935]
[1731935637512,32.7596845,238.9,238.82,32.7596845]
[1731935637513,102.7596845,238.9,238.82,32.7596845]
[1731935638310,32.7596845,238.95,238.88,32.7596845]
[1731935638517,32.7596845,238.98,238.91,32.7596845]
[1731935638715,4.1843,238.99,238.94,32.7596845]
[1731935638893,4.1843,238.99,238.95,32.7596845]
[1731935639093,4.1843,238.99,238.86,0.34465462]
[1731935639398,4.1836,239.03,238.96,32.7596845]
[1731935639612,70.0,239.06,238.86,0.34465462]
[1731935639613,70.0,239.06,239.0,32.7596845]
[1731935639911,70.0,239.11,239.05,32.7596845]
[1731935640110,10.4519,239.2,238.97,25.90345462]
[1731935640111,70.0,239.16,239.09,32.7596845]
[1731935640301,4.1815,239.15,239.09,32.7596845]
[1731935640508,70.0,239.16,239.09,32.7596845]
[1731935640694,36.9407845,239.17,239.09,32.7596845]
[1731935640893,4.1808,239.19,239.14,32.7596845]
[1731935641092,4.1808,239.19,239.15,32.7596845]
[1731935641300,70.0,239.18,239.11,32.7596845]
[1731935641509,4.1808,239.19,239.13,32.7596845]
[1731935641796,4.1808,239.19,239.15,32.7596845]
[1731935641992,70.0,239.21,239.15,32.7596845]
[1731935641993,74.1804,239.21,239.15,32.7596845]
[1731935642513,74.1804,239.21,239.1,10.4557]
[1731935642514,74.1797,239.25,239.19,32.7596845]
[1731935642698,74.1797,239.25,239.2,32.7596845]
[1731935642895,74.1797,239.25,239.19,32.7596845]
[1731935643219,74.1797,239.25,239.2,32.7596845]
[1731935643521,4.1794,239.27,239.21,32.7596845]
[1731935643704,4.1794,239.27,239.22,32.7596845]
[1731935643905,4.179,239.29,239.24,32.7596845]
[1731935644124,86.725539,239.32,239.26,32.7596845]
[1731935644417,16.725539,239.32,239.26,32.7596845]
[1731935644624,70.0,239.26,239.18,23.776884]
[1731935644796,70.0,239.23,239.09,4.1825]
[1731935644998,70.0,239.28,239.13,0.1]
[1731935645299,70.0,239.28,239.15,0.1]
[1731935645517,4.1786,239.31,239.15,0.1]
[1731935645943,4.1786,239.31,239.25,32.7596845]
[1731935646121,70.0,239.32,239.26,32.7596845]